bitfinex-derivatives/quotes_ETHF0:USTF0_20241005
["timestamp","ask_amount","ask_price","bid_price","bid_amount"]
[1728106454085,0.3941,2415.3,2414.9,5.61325]
[1728106454279,3.49759,2415.4,2415.1,0.89]
[1728106454477,3.49759,2415.4,2415.2,0.4283]
[1728106454685,0.2898,2415.3,2415.2,0.4283]
[1728106456680,0.28979,2415.4,2415.2,0.4283]
[1728106457078,0.2898,2415.4,2415.2,0.4283]
[1728106458186,0.2898,2415.4,2415.3,0.3894]
[1728106464890,0.2898,2415.4,2415.3,0.8075]
[1728106470188,0.28978,2415.5,2415.3,6.1273]
[1728106470487,3.93219,2415.7,2415.4,0.89]
[1728106470488,3.2078,2415.7,2415.4,0.89]
[1728106470688,3.2078,2415.7,2415.6,0.89]
[1728106471491,3.49755,2415.7,2415.6,0.89]
[1728106472388,0.28975,2415.7,2415.6,0.89]
[1728106480088,0.72431,2416.0,2415.6,5.03]
[1728106480293,0.72431,2416.0,2415.7,1.7143]
[1728106480294,0.28973,2415.9,2415.7,1.7143]
[1728106480498,0.28974,2415.8,2415.7,1.7143]
[1728106480999,0.28974,2415.8,2415.7,5.8535]
[1728106482392,1.14231,2416.0,2415.8,0.28974]
[1728106482393,0.28972,2416.0,2415.8,0.28974]
[1728106482595,0.28972,2416.0,2415.7,5.8535]
[1728106482596,0.28972,2416.0,2415.7,1.7143]
[1728106482795,0.28972,2416.0,2415.7,2.00404]
[1728106483197,0.7759,2416.1,2415.7,2.00404]
[1728106483392,0.28973,2415.9,2415.7,2.00404]
[1728106484895,0.72424,2416.2,2415.7,1.7143]
[1728106485100,0.28972,2416.0,2415.9,0.89]
[1728106485900,0.28972,2416.0,2415.7,1.11405]
[1728106485901,0.28973,2415.9,2415.8,0.89]
[1728106492610,0.28973,2415.9,2415.8,4.0978]
[1728106494709,0.28973,2415.9,2415.8,0.89]
[1728106496113,0.28973,2415.9,2415.8,4.5055]
[1728106496500,1.17973,2415.9,2415.8,3.2078]
[1728106497210,1.17973,2415.9,2415.5,4.9838]
[1728106497211,0.28976,2415.6,2415.5,4.9838]
[1728106497407,0.28976,2415.7,2415.5,4.0938]
[1728106497607,1.2153,2415.8,2415.5,4.0938]
[1728106497608,0.28976,2415.6,2415.5,3.2078]
[1728106498412,0.28976,2415.7,2415.5,3.2078]
[1728106499010,0.28976,2415.7,2415.5,3.49758]
[1728106499605,2.1053,2415.8,2415.5,3.2078]
[1728106499810,0.28976,2415.6,2415.5,3.2078]
[1728106502715,0.28976,2415.6,2415.4,0.3863]
[1728106502908,0.3874,2415.5,2415.4,0.3863]
[1728106503305,0.3874,2415.5,2415.4,0.67609]
[1728106504616,0.3874,2415.5,2415.4,0.3863]
[1728106504815,0.67718,2415.5,2415.4,0.3863]
[1728106505121,0.3874,2415.5,2415.4,0.3863]
[1728106506015,0.3874,2415.5,2415.4,0.67609]
[1728106506616,0.3874,2415.5,2415.4,1.56609]
[1728106506821,1.7119,2415.8,2415.4,1.2763]
[1728106506822,0.28976,2415.6,2415.4,1.2763]
[1728106507019,0.28976,2415.6,2415.5,0.3891]
[1728106507929,0.68326,2415.7,2415.5,1.99647]
[1728106508835,0.3935,2415.7,2415.5,1.7067]
[1728106509023,0.28976,2415.6,2415.5,1.7067]
[1728106513632,0.28976,2415.6,2415.5,0.8167]
[1728106515535,0.3935,2415.7,2415.4,0.3863]
[1728106515734,0.28978,2415.5,2415.4,0.3863]
[1728106518322,0.28978,2415.5,2415.4,3.5941]
[1728106518528,0.28978,2415.5,2415.4,3.2078]
[1728106518722,0.28978,2415.5,2415.2,0.4063]
[1728106518723,0.2898,2415.3,2415.2,0.4241]
[1728106518936,4.86445,2415.5,2415.1,3.2078]
[1728106518937,2.1286,2415.4,2415.1,3.2078]
[1728106519138,0.28981,2415.2,2415.1,3.2078]
[1728106520131,0.28981,2415.3,2415.1,3.49762]
[1728106520827,2.1286,2415.4,2415.1,3.2078]
[1728106521229,0.2898,2415.3,2415.1,3.2078]
[1728106521745,0.2898,2415.3,2415.1,0.28982]
[1728106522040,0.2898,2415.3,2415.1,3.49762]
[1728106525939,0.2898,2415.3,2415.1,0.28982]
[1728106526340,0.2898,2415.3,2415.1,3.49762]
[1728106526845,0.2898,2415.3,2415.1,0.28982]
[1728106527538,0.2898,2415.3,2415.1,3.49762]
[1728106528941,0.2898,2415.3,2415.1,0.28982]
[1728106529136,0.2898,2415.3,2415.1,3.49762]
[1728106531845,0.2898,2415.3,2415.1,0.28982]
[1728106532249,0.28981,2415.2,2415.1,3.2078]
[1728106532748,2.1286,2415.4,2415.1,3.2078]
[1728106533449,0.2898,2415.3,2415.1,3.2078]
[1728106534242,0.2898,2415.3,2415.1,3.49762]
[1728106536339,0.8226,2415.4,2415.1,4.0978]
[1728106536543,3.6908,2415.7,2415.3,0.89]
[1728106536544,0.483,2415.7,2415.3,0.89]
[1728106536749,0.28974,2415.8,2415.6,0.28976]
[1728106536951,0.3894,2415.9,2415.7,0.3896]
[1728106537149,0.28972,2416.0,2415.8,1.11224]
[1728106537853,0.28972,2416.0,2415.8,0.8225]
[1728106538149,0.28973,2415.9,2415.8,0.8225]
[1728106538940,0.28972,2416.0,2415.8,1.11224]
[1728106539446,0.28973,2415.9,2415.8,0.8225]
[1728106543742,0.28972,2416.0,2415.8,1.11224]
[1728106548251,0.28973,2415.9,2415.8,0.8225]
[1728106550252,0.28973,2415.9,2415.8,1.11224]
[1728106551349,0.28972,2416.0,2415.8,1.11224]
[1728106552456,0.28973,2415.9,2415.8,0.8225]
[1728106552852,0.28972,2416.0,2415.8,1.11224]
[1728106556365,0.28972,2416.0,2415.9,0.28973]
[1728106557261,0.28972,2416.0,2415.8,1.11223]
[1728106558261,0.28972,2416.0,2415.9,0.28973]
[1728106558464,0.28971,2416.1,2415.9,0.89]
[1728106558967,0.28971,2416.1,2416.0,0.4001]
[1728106561365,0.28968,2416.3,2416.0,8.6371]
[1728106561571,0.28968,2416.3,2416.2,0.89]
[1728106565174,0.096,2416.6,2416.2,0.89]
[1728106565369,0.28965,2416.6,2416.4,0.89]
[1728106565566,0.28965,2416.6,2416.4,1.3146]
[1728106565769,0.28965,2416.6,2416.4,1.60427]
[1728106566168,4.5194,2416.8,2416.5,1.17965]
[1728106566169,3.49742,2416.8,2416.5,1.17965]
[1728106566365,0.096,2417.1,2416.8,0.28962]
[1728106566569,1.3868,2417.3,2417.0,4.0978]
[1728106566570,0.8278,2417.3,2417.0,4.0978]
[1728106566774,0.38552,2417.7,2417.3,0.28955]
[1728106566979,0.28954,2417.5,2417.4,0.4033]
[1728106567171,0.4063,2417.7,2417.4,0.4033]
[1728106567375,1.17953,2417.6,2417.4,0.4033]
[1728106567577,0.28954,2417.5,2417.2,0.89]
[1728106567776,0.89,2417.5,2417.1,1.2873]
[1728106567974,0.89,2417.3,2417.1,0.4033]
[1728106568273,0.4215,2417.4,2417.0,3.2078]
[1728106568274,0.28958,2417.1,2417.0,3.2078]
[1728106568475,1.17958,2417.1,2417.0,3.2078]
[1728106568675,5.71658,2417.1,2417.0,3.2078]
[1728106571477,0.3994,2417.1,2417.0,3.2078]
[1728106571977,0.3994,2417.1,2416.8,1.17962]
[1728106572377,0.4063,2417.2,2416.9,0.28961]
[1728106572770,0.4063,2417.2,2417.0,0.3875]
[1728106572979,0.4063,2417.2,2417.0,1.2136]
[1728106574176,0.69588,2417.2,2417.0,1.2136]
[1728106575089,0.4063,2417.2,2417.0,1.2136]
[1728106575381,0.28961,2416.9,2416.7,3.2078]
[1728106575686,0.28962,2416.8,2416.7,4.0442]
[1728106575880,0.28962,2416.9,2416.7,4.0442]
[1728106576787,0.70282,2416.8,2416.7,4.0442]
[1728106576980,0.4132,2416.8,2416.7,4.0442]
[1728106577683,0.4132,2416.8,2416.7,0.8364]
[1728106577884,0.70282,2416.8,2416.7,0.8364]
[1728106578084,0.70282,2416.8,2416.7,0.4147]
[1728106579596,0.4132,2416.8,2416.7,0.4147]
[1728106580787,0.70282,2416.8,2416.6,0.4163]
[1728106581293,0.70282,2416.8,2416.5,0.8206]
[1728106581294,0.28963,2416.7,2416.5,0.8206]
[1728106581992,0.70283,2416.8,2416.5,0.8206]
[1728106582193,0.4132,2416.8,2416.5,0.8206]
[1728106582395,0.28963,2416.7,2416.5,0.8206]
[1728106582695,0.4132,2416.8,2416.5,0.8206]
[1728106582895,0.70283,2416.8,2416.5,0.8206]
[1728106583094,0.4132,2416.8,2416.5,0.8206]
[1728106583293,0.70283,2416.8,2416.5,0.8206]
[1728106584399,0.70283,2416.8,2416.5,1.11025]
[1728106584593,0.28964,2416.7,2416.5,0.8206]
[1728106585299,0.70283,2416.8,2416.5,1.11025]
[1728106585992,0.4132,2416.8,2416.5,1.11025]
[1728106586201,0.28963,2416.7,2416.5,1.11025]
[1728106586387,0.70283,2416.8,2416.5,1.11025]
[1728106587495,0.28963,2416.7,2416.5,1.11025]
[1728106587698,0.28963,2416.7,2416.5,0.8206]
[1728106590593,0.4132,2416.8,2416.5,0.8206]
[1728106590803,0.28964,2416.7,2416.5,0.8206]
[1728106591799,0.28964,2416.6,2416.5,0.8206]
[1728106593101,0.28964,2416.7,2416.5,1.11026]
[1728106593301,0.70283,2416.8,2416.5,1.11026]
[1728106593608,0.70283,2416.8,2416.6,0.89]
[1728106593810,0.70283,2416.8,2416.7,0.4019]
[1728106596802,0.28962,2416.8,2416.7,0.4019]
[1728106597296,0.28962,2416.9,2416.7,0.4019]
[1728106597695,0.28962,2416.9,2416.8,0.3922]
[1728106604302,0.28962,2416.8,2416.7,0.4019]
[1728106604505,0.28964,2416.6,2416.5,0.8165]
[1728106605410,0.70034,2416.6,2416.5,0.8165]
[1728106606303,0.70034,2416.6,2416.4,3.2078]
[1728106606304,0.28966,2416.5,2416.4,3.2078]
[1728106608009,0.70035,2416.6,2416.4,3.2078]
[1728106608608,0.4046,2416.7,2416.4,3.2078]
[1728106608911,1.2952,2416.9,2416.4,4.0978]
[1728106609112,0.28964,2416.7,2416.4,4.38746]
[1728106609504,1.7227,2416.9,2416.4,4.0978]
[1728106609710,0.28965,2416.6,2416.4,3.2078]
[1728106611814,2.44674,2416.9,2416.4,3.49747]
[1728106612115,0.28964,2416.7,2416.4,3.49747]
[1728106612415,0.28965,2416.6,2416.4,3.2078]
[1728106615516,0.28965,2416.6,2416.3,1.97708]
[1728106615709,1.7227,2416.9,2416.3,1.97708]
[1728106615904,0.28966,2416.5,2416.4,3.2078]
[1728106616118,0.72406,2416.8,2416.4,3.2078]
[1728106616415,0.28965,2416.6,2416.4,3.2078]
[1728106618922,0.28965,2416.6,2416.3,1.97708]
[1728106619218,0.28963,2416.7,2416.4,3.2078]
[1728106619414,0.28965,2416.6,2416.4,3.2078]
[1728106619619,0.3885,2416.6,2416.4,3.2078]
[1728106619920,0.28966,2416.5,2416.4,3.2078]
[1728106620715,0.28966,2416.5,2416.4,3.72574085]
[1728106620917,0.28966,2416.5,2416.4,3.72573782]
[1728106621823,0.3885,2416.6,2416.4,3.72573782]
[1728106621824,0.67815,2416.6,2416.4,3.72573782]
[1728106622123,0.67815,2416.6,2416.3,1.97707]
[1728106622322,0.67815,2416.6,2416.4,3.72573955]
[1728106622517,0.67815,2416.6,2416.4,3.2078]
[1728106622915,0.3885,2416.6,2416.4,3.2078]
[1728106623120,0.28966,2416.5,2416.4,3.2078]
[1728106623320,0.28966,2416.5,2416.4,3.72577167]
[1728106623824,0.28966,2416.5,2416.4,3.72578041]
[1728106624021,0.28966,2416.5,2416.4,3.2078]
[1728106624223,0.28966,2416.5,2416.3,0.7974]
[1728106624224,0.28967,2416.4,2416.3,0.7974]
[1728106629624,0.28968,2416.3,2416.2,0.4277]
[1728106629828,0.68998,2416.3,2416.2,0.4277]
[1728106632324,0.28969,2416.2,2416.1,0.411]
[1728106634131,5.0292,2416.2,2416.0,0.413]
[1728106634321,0.28972,2416.0,2415.8,3.2078]
[1728106634523,0.28973,2415.9,2415.8,3.2078]
[1728106634829,0.68533,2415.9,2415.8,3.2078]
[1728106636131,0.68533,2415.9,2415.7,2.0822]
[1728106636327,0.3956,2415.9,2415.7,2.0822]
[1728106636539,0.68533,2415.9,2415.8,3.2078]
[1728106640436,1.57533,2415.9,2415.8,3.2078]
[1728106642541,5.4248,2415.9,2415.5,0.4107]
[1728106642736,0.28976,2415.6,2415.5,1.2214]
[1728106642936,1.17976,2415.6,2415.5,1.2214]
[1728106643142,1.17976,2415.6,2415.5,0.8107]
[1728106643539,1.58076,2415.6,2415.5,0.8107]
[1728106644350,0.4225,2415.7,2415.5,0.8107]
[1728106644351,1.17976,2415.7,2415.5,0.8107]
[1728106644545,1.17976,2415.7,2415.6,0.4159]
[1728106645951,0.28976,2415.6,2415.5,0.8107]
[1728106646154,0.69276,2415.6,2415.5,0.8107]
[1728106649552,0.28976,2415.6,2415.5,0.8107]
[1728106664364,1.17976,2415.6,2415.5,0.8107]
[1728106666365,1.17976,2415.6,2415.5,0.3873]
[1728106673965,0.28979,2415.4,2415.3,1.2458]
[1728106676079,0.28979,2415.4,2415.2,3.2078]
[1728106676080,0.2898,2415.3,2415.2,3.2078]
[1728106676277,1.5938,2415.3,2415.2,3.2078]
[1728106676866,0.28982,2415.1,2415.0,2.106]
[1728106677169,0.28982,2415.1,2415.0,1.222]
[1728106677379,0.71022,2415.2,2415.0,1.222]
[1728106678479,0.71022,2415.2,2415.0,1.51183]
[1728106679275,0.71022,2415.2,2415.0,1.222]
[1728106680983,0.28982,2415.1,2415.0,1.222]
[1728106681178,1.17982,2415.1,2415.0,1.222]
[1728106681376,1.17982,2415.1,2415.0,0.4022]
[1728106681588,1.17982,2415.1,2414.8,3.2078]
[1728106681589,0.28985,2414.9,2414.8,0.3986]
[1728106681884,1.18985,2414.9,2414.8,0.3986]
[1728106682586,1.99175,2414.9,2414.8,0.3986]
[1728106683484,1.98175,2414.9,2414.8,0.3986]
[1728106684197,0.28986,2414.8,2414.7,0.8216]
[1728106684582,4.1416,2414.8,2414.4,3.3038]
[1728106684775,0.9,2414.6,2414.4,3.992]
[1728106684983,1.18989,2414.6,2414.4,3.992]
[1728106685473,0.2899,2414.5,2414.4,3.992]
[1728106686079,0.7067,2414.5,2414.4,3.992]
[1728106686490,0.7067,2414.5,2414.4,3.2078]
[1728106686681,1.1082,2414.5,2414.4,3.2078]
[1728106688488,5.651,2414.5,2414.4,3.2078]
[1728106690389,0.28992,2414.4,2414.2,0.3928]
[1728106690584,1.18992,2414.3,2414.2,0.3928]
[1728106691387,0.9,2414.3,2414.2,0.3928]
[1728106692589,0.9,2414.4,2414.2,0.3928]
[1728106693294,0.9,2414.4,2414.2,0.68273]
[1728106693490,1.18991,2414.4,2414.2,0.68273]
[1728106693686,1.18991,2414.4,2414.2,0.3928]
[1728106696388,0.28992,2414.3,2414.2,0.3928]
[1728106696986,3.93251,2414.7,2414.2,0.3928]
[1728106696987,0.4103,2414.8,2414.3,0.28991]
[1728106697189,0.28989,2414.6,2414.4,0.4213]
[1728106697392,0.28989,2414.6,2414.5,0.3921]
[1728106697589,0.28989,2414.6,2414.5,0.788]
[1728106706006,0.28988,2414.7,2414.5,0.788]
[1728106706195,1.11463,2414.9,2414.5,0.788]
[1728106706196,2.00463,2414.9,2414.5,0.788]
[1728106706393,0.28988,2414.6,2414.5,0.788]
[1728106706797,0.28988,2414.6,2414.5,4.9296]
[1728106708604,1.18988,2414.6,2414.5,0.788]
[1728106719001,1.18988,2414.6,2414.5,0.3921]
[1728106723012,0.71626,2414.8,2414.5,0.3921]
[1728106723411,0.71626,2414.8,2414.6,0.3919]
[1728106724315,0.28986,2414.8,2414.6,0.3919]
[1728106725315,4.4878,2414.9,2414.6,0.3919]
[1728106725619,0.28986,2414.8,2414.6,0.3919]
[1728106726719,0.28987,2414.7,2414.6,0.3919]
[1728106726915,0.71767,2414.7,2414.6,0.3919]
[1728106737926,0.4278,2414.7,2414.6,0.3919]
[1728106738427,0.71767,2414.7,2414.6,0.3919]
[1728106745826,0.71767,2414.7,2414.6,0.51941909]
[1728106746032,0.71767,2414.7,2414.4,1.07077351]
[1728106746033,0.28989,2414.6,2414.4,0.8268]
[1728106746431,0.28989,2414.6,2414.5,0.51944568]
[1728106747635,0.71768,2414.7,2414.5,0.51944568]
[1728106747935,0.71768,2414.7,2414.4,0.8268]
[1728106748138,0.71768,2414.7,2414.5,0.51947783]
[1728106748336,0.71768,2414.7,2414.4,4.0346]
[1728106748543,0.71768,2414.7,2414.5,0.51948382]
[1728106748836,0.71768,2414.7,2414.4,0.8268]
[1728106749037,0.71768,2414.7,2414.5,0.51948301]
[1728106749240,0.71768,2414.7,2414.4,0.8268]
[1728106749738,0.71768,2414.7,2414.5,0.51949192]
[1728106750036,0.71768,2414.7,2414.4,4.0346]
[1728106750235,0.71768,2414.7,2414.5,0.51949544]
[1728106750542,0.71768,2414.7,2414.4,4.0346]
[1728106750845,0.71768,2414.7,2414.5,0.51949899]
[1728106751035,0.71768,2414.7,2414.4,4.0346]
[1728106751240,0.71768,2414.7,2414.5,0.51949849]
[1728106751537,0.71768,2414.7,2414.4,0.8268]
[1728106751747,0.71768,2414.7,2414.5,0.51950869]
[1728106751954,0.71768,2414.7,2414.4,4.0346]
[1728106752253,0.71768,2414.7,2414.5,0.51945435]
[1728106752459,0.71768,2414.7,2414.4,4.0346]
[1728106752755,0.71768,2414.7,2414.5,0.5194532]
[1728106752952,0.71768,2414.7,2414.4,0.8268]
[1728106753153,0.71768,2414.7,2414.5,0.51945546]
[1728106753451,0.71768,2414.7,2414.4,4.0346]
[1728106753648,0.71768,2414.7,2414.5,0.51946878]
[1728106753851,0.71768,2414.7,2414.4,4.0346]
[1728106754149,0.71768,2414.7,2414.5,0.51948637]
[1728106754354,0.71768,2414.7,2414.4,4.0346]
[1728106754547,0.71768,2414.7,2414.5,0.51948512]
[1728106754852,0.71768,2414.7,2414.4,4.0346]
[1728106755050,0.71768,2414.7,2414.5,0.51949013]
[1728106755256,0.71768,2414.7,2414.4,4.0346]
[1728106755446,0.71768,2414.7,2414.5,0.51949395]
[1728106755751,0.71768,2414.7,2414.4,4.0346]
[1728106755952,0.71768,2414.7,2414.5,0.51949398]
[1728106756147,0.71768,2414.7,2414.4,0.8268]
[1728106756452,0.71768,2414.7,2414.5,0.51949928]
[1728106756653,0.71768,2414.7,2414.4,4.0346]
[1728106756851,0.71768,2414.7,2414.5,0.51950246]
[1728106757050,0.71768,2414.7,2414.4,4.0346]
[1728106757252,0.71768,2414.7,2414.5,0.51949972]
[1728106757450,0.71768,2414.7,2414.4,4.0346]
[1728106757756,0.71768,2414.7,2414.5,0.51949665]
[1728106757950,0.71768,2414.7,2414.4,0.8268]
[1728106758144,0.71768,2414.7,2414.5,0.51954762]
[1728106758355,0.71768,2414.7,2414.4,0.8268]
[1728106758559,0.71768,2414.7,2414.5,0.51955618]
[1728106758752,0.71768,2414.7,2414.4,4.0346]
[1728106759057,0.71768,2414.7,2414.5,0.51955549]
[1728106759255,0.71768,2414.7,2414.4,4.0346]
[1728106759451,0.71768,2414.7,2414.5,0.51957444]
[1728106759660,0.71768,2414.7,2414.4,4.0346]
[1728106759954,0.71768,2414.7,2414.5,0.51970545]
[1728106760159,0.71768,2414.7,2414.4,4.0346]
[1728106760350,0.71768,2414.7,2414.5,0.51973397]
[1728106760551,0.71768,2414.7,2414.4,0.8268]
[1728106760751,0.71768,2414.7,2414.5,0.51974544]
[1728106760952,0.71768,2414.7,2414.4,0.8268]
[1728106761152,0.71768,2414.7,2414.5,0.51974851]
[1728106761358,0.71768,2414.7,2414.4,4.0346]
[1728106761558,0.71768,2414.7,2414.5,0.51976592]
[1728106761856,0.71768,2414.7,2414.4,4.0346]
[1728106762055,0.71768,2414.7,2414.5,0.51976349]
[1728106762255,0.71768,2414.7,2414.4,4.0346]
[1728106762453,0.71768,2414.7,2414.5,0.51977991]
[1728106762759,0.71768,2414.7,2414.4,4.0346]
[1728106762959,0.71768,2414.7,2414.5,0.51977793]
[1728106763163,0.71768,2414.7,2414.4,0.8268]
[1728106763353,0.71768,2414.7,2414.5,0.51977972]
[1728106763658,0.71768,2414.7,2414.4,4.0346]
[1728106763862,0.71768,2414.7,2414.5,0.51979514]
[1728106764051,0.4278,2414.7,2414.6,0.51979514]
[1728106764357,3.63078257,2414.9,2414.6,0.51979514]
[1728106764358,0.39,2414.9,2414.6,0.51979514]
[1728106764558,0.39,2414.9,2414.7,1.29859514]
[1728106764757,0.39,2414.9,2414.7,0.7788]
[1728106764956,0.67985,2414.9,2414.8,0.4155]
[1728106767065,1.56985,2414.9,2414.8,0.4155]
[1728106770967,1.57985,2414.9,2414.8,0.4155]
[1728106771154,1.57985,2414.9,2414.7,0.7788]
[1728106771155,0.28986,2414.8,2414.7,0.7788]
[1728106771359,0.69406,2414.8,2414.7,0.7788]
[1728106771661,0.69406,2414.8,2414.7,0.3891]
[1728106797976,3.63078257,2414.9,2414.7,0.3891]
[1728106798176,0.39,2414.9,2414.8,0.3884]
[1728106798576,0.67985,2414.9,2414.8,0.3884]
[1728106799778,0.28985,2414.9,2414.8,0.3884]
[1728106801782,0.70075,2415.0,2414.8,0.3884]
[1728106802080,0.28985,2414.9,2414.8,0.3884]
[1728106802278,0.70074,2415.0,2414.9,0.4153]
[1728106802774,4.51868257,2415.2,2414.9,0.4153]
[1728106802775,3.53060257,2415.2,2414.9,0.4153]
[1728106802975,3.24078257,2415.3,2415.0,1.2902]
[1728106803284,4.166713,2415.4,2415.0,4.498]
[1728106803285,3.53058257,2415.4,2415.0,4.498]
[1728106803479,0.2898,2415.4,2415.1,0.51917621]
[1728106803671,0.2898,2415.3,2415.2,0.4076]
[1728106804381,1.119,2415.3,2415.2,0.4076]
[1728106804679,0.28982,2415.1,2415.0,0.4002]
[1728106807279,0.89,2415.2,2414.7,3.2078]
[1728106807280,0.28985,2414.9,2414.7,3.2078]
[1728106807479,4.82235,2415.2,2414.7,3.6118]
[1728106807480,1.17983,2415.1,2414.7,3.6118]
[1728106807676,0.28983,2415.1,2414.7,4.79167]
[1728106807993,1.17985,2414.9,2414.7,3.6118]
[1728106808281,1.18986,2414.8,2414.7,3.6118]
[1728106808474,1.59086,2414.8,2414.7,3.6118]
[1728106809275,1.59086,2414.8,2414.7,3.2078]
[1728106813285,0.401,2414.8,2414.7,3.2078]
[1728106813772,1.59086,2414.8,2414.7,3.2078]
[1728106817486,1.59086,2414.8,2414.6,0.8254]
[1728106817790,0.3949,2414.7,2414.6,0.8254]
[1728106819386,0.68477,2414.7,2414.6,0.8254]
[1728106819594,0.3949,2414.7,2414.6,0.8254]
[1728106819788,1.17986,2414.9,2414.6,1.34437714]
[1728106819995,1.17986,2414.9,2414.6,0.8254]
[1728106820588,0.89,2414.9,2414.6,0.8254]
[1728106820790,0.28986,2414.8,2414.6,0.8254]
[1728106821085,0.4122,2415.0,2414.6,0.8254]
[1728106821396,0.70204,2415.0,2414.7,1.17987]
[1728106821596,0.70204,2415.0,2414.8,0.412]
[1728106821991,0.70204,2415.0,2414.9,0.4227]
[1728106824188,0.4122,2415.0,2414.9,0.4227]
[1728106829786,1.3122,2415.0,2414.6,3.6335]
[1728106829985,1.3122,2415.0,2414.6,4.0404]
[1728106829986,0.9,2414.8,2414.6,4.0404]
[1728106830503,0.3935,2414.7,2414.6,4.0404]
[1728106830696,0.3935,2414.7,2414.6,4.55933812]
[1728106832098,0.3935,2414.7,2414.6,4.55933625]
[1728106835698,0.3935,2414.7,2414.6,4.55936338]
[1728106837496,0.3935,2414.7,2414.6,4.84924338]
[1728106838099,0.68337,2414.7,2414.6,4.55936338]
[1728106838297,0.68337,2414.7,2414.6,4.0404]
[1728106839191,0.3935,2414.7,2414.6,4.0404]
[1728106839598,0.3935,2414.7,2414.6,4.55933332]
[1728106839792,0.68337,2414.7,2414.6,4.55933332]
[1728106840493,1.58337,2414.7,2414.6,3.72673332]
[1728106840698,5.72497,2414.7,2414.6,3.72673332]
[1728106840999,6.12257,2414.7,2414.6,3.72673332]
[1728106841207,6.12257,2414.7,2414.6,3.2078]
[1728106843700,6.12257,2414.7,2414.5,0.3909]
[1728106843701,5.8327,2414.7,2414.5,0.3909]
[1728106843903,0.28988,2414.6,2414.4,3.6243]
[1728106845009,0.2899,2414.5,2414.4,3.6243]
[1728106845212,1.1899,2414.5,2414.4,3.6243]
[1728106846903,0.28993,2414.2,2414.1,0.096]
[1728106847103,0.28994,2414.1,2413.8,3.2078]
[1728106847303,1.09314,2414.1,2413.8,3.2078]
[1728106848109,0.8032,2414.1,2413.8,3.2078]
[1728106848801,1.09314,2414.1,2413.8,3.2078]
[1728106849004,0.8032,2414.1,2413.8,3.2078]
[1728106849199,3.33678257,2414.7,2414.0,0.9]
[1728106849404,3.33678257,2414.7,2413.8,7.3502]
[1728106849405,1.11779,2414.6,2414.2,1.18993]
[1728106849611,1.11779,2414.6,2414.3,0.7758]
[1728106849906,1.11779,2414.6,2414.4,0.3912]
[1728106851199,0.2899,2414.5,2414.4,0.3912]
[1728106854118,1.1899,2414.5,2414.4,0.3912]
[1728106865019,0.28991,2414.4,2414.3,0.7758]
[1728106866814,1.1899,2414.5,2414.3,0.7758]
[1728106869411,0.28991,2414.4,2414.3,0.7758]
[1728106869610,1.1899,2414.5,2414.3,0.7758]
[1728106870015,0.28991,2414.4,2414.3,0.7758]
[1728106870218,1.18991,2414.4,2414.3,0.7758]
[1728106870622,1.18991,2414.4,2414.3,0.3855]
[1728106880327,0.8279,2414.6,2414.3,0.3855]
[1728106880629,0.2899,2414.5,2414.4,0.4154]
[1728106881421,1.1899,2414.5,2414.4,0.4154]
[1728106883531,0.9,2414.5,2414.4,0.4154]
[1728106884326,1.1899,2414.5,2414.4,0.4154]
[1728106895032,0.4216,2414.6,2414.4,1.3054]
[1728106895238,0.71148,2414.6,2414.5,0.4039]
[1728106895544,0.28988,2414.6,2414.5,0.4039]
[1728106899342,4.97448257,2414.8,2414.5,0.4039]
[1728106899648,3.24078257,2414.8,2414.5,0.4039]
[1728106899836,3.780913,2414.9,2414.5,0.4039]
[1728106899837,0.28984,2415.0,2414.6,2.11346245]
[1728106900041,0.28984,2415.0,2414.7,0.51928245]
[1728106900241,0.28984,2415.0,2414.8,1.32657867]
[1728106900440,1.17984,2415.0,2414.8,0.8074]
[1728106900749,1.17984,2415.0,2414.9,0.4143]
[1728106905645,1.17984,2415.0,2414.6,3.2078]
[1728106905646,0.28987,2414.8,2414.6,3.2078]
[1728106905844,0.67637,2414.7,2414.6,3.2078]
[1728106906238,0.67637,2414.7,2414.6,7.3494]
[1728106906439,1.2865,2414.7,2414.5,0.7734]
[1728106906645,0.28988,2414.6,2414.5,0.7734]
[1728106906841,0.28988,2414.6,2414.2,4.27857351]
[1728106906842,0.2899,2414.5,2414.2,3.2078]
[1728106907139,0.2899,2414.5,2414.3,0.3857]
[1728106907140,0.3865,2414.4,2414.3,0.3857]
[1728106908746,0.67641,2414.4,2414.3,0.3857]
[1728106909349,1.06571,2414.4,2414.3,0.3857]
[1728106910445,0.7758,2414.4,2414.3,0.3857]
[1728106910649,1.06571,2414.4,2414.3,0.3857]
[1728106911050,0.7758,2414.4,2414.3,0.3857]
[1728106911946,1.06571,2414.4,2414.3,0.3857]
[1728106912743,0.7758,2414.4,2414.3,0.3857]
[1728106915056,1.06571,2414.4,2414.3,0.3857]
[1728106915355,0.7758,2414.4,2414.3,0.3857]
[1728106916159,0.7758,2414.4,2414.3,0.67562]
[1728106916464,0.7758,2414.4,2414.3,0.3857]
[1728106916651,0.3865,2414.4,2414.3,0.3857]
[1728106917456,0.2899,2414.5,2414.3,0.3857]
[1728106931557,1.2909,2414.6,2414.3,0.3857]
[1728106931558,0.393,2414.8,2414.3,0.3857]
[1728106931863,0.3889,2414.7,2414.4,4.516]
[1728106932060,0.67878,2414.7,2414.5,0.3879]
[1728106933461,0.67878,2414.7,2414.6,0.406]